bitfinex/quotes_SOLUSD_20250520
["timestamp","ask_amount","ask_price","bid_price","bid_amount"]
[1747773633232,5.95202666,168.01,167.98,3.41180162]
[1747773633434,5.95167241,168.02,167.98,3.41180162]
[1747773634637,5.95167241,168.02,167.96,26.0]
[1747773635463,14.87880041,168.03,167.96,26.0]
[1747773636062,14.87880041,168.03,167.97,3.41011411]
[1747773636662,20.83011862,168.03,167.97,3.41011411]
[1747773637260,20.83011862,168.03,167.98,3.41011411]
[1747773639365,20.83011862,168.03,167.96,26.0]
[1747773639871,37.85731995,168.03,167.96,26.0]
[1747773640171,20.83011862,168.03,167.96,26.0]
[1747773640372,20.83011862,168.03,167.97,3.40848468]
[1747773641469,14.87880041,168.03,167.97,3.40848468]
[1747773641969,14.87880041,168.03,167.96,26.0]
[1747773642967,5.95096405,168.04,167.96,26.0]
[1747773643266,37.85557552,168.04,167.96,26.0]
[1747773643465,37.85557552,168.04,167.97,3.40736315]
[1747773644568,37.85557552,168.04,167.98,3.40736315]
[1747773646149,20.82837419,168.04,167.96,26.0]
[1747773646960,17.02720133,168.03,167.96,26.0]
[1747773647281,17.02720133,168.02,167.97,3.40666578]
[1747773648770,5.95202666,168.01,167.96,26.0]
[1747773651292,14.87952924,168.02,167.97,3.40577214]
[1747773651469,5.95131821,168.03,167.97,3.40577214]
[1747773652479,5.95131821,168.03,167.96,26.0]
[1747773653580,5.95096405,168.04,167.99,1.5953]
[1747773653882,5.95025586,168.06,167.99,27.5953]
[1747773654173,5.94954783,168.08,167.99,110.0953]
[1747773654672,5.94954783,168.08,168.0,3.40294213]
[1747773655394,20.82156465,168.1,168.0,3.40294213]
[1747773656077,37.84876598,168.1,168.01,3.40294213]
[1747773657175,37.84876598,168.1,168.02,3.40294213]
[1747773658379,37.84876598,168.1,168.03,3.40294213]
[1747773658880,17.02720133,168.09,168.03,3.40294213]
[1747773659476,17.02720133,168.09,167.99,140.4553]
[1747773659477,20.82341741,168.08,167.99,140.4553]
[1747773660281,20.82341741,168.08,168.0,3.40061539]
[1747773661280,17.02720133,168.04,168.0,3.40061539]
[1747773661655,17.02720133,168.04,167.99,1.5953]
[1747773661864,17.02720133,168.04,167.99,27.5953]
[1747773662380,17.02720133,168.04,167.99,26.0]
[1747773662580,17.02720133,168.03,167.99,26.0]
[1747773662752,17.02720133,168.04,167.99,26.0]
[1747773663182,5.95131821,168.03,167.99,26.0]
[1747773665300,20.82589551,168.06,167.99,26.0]
[1747773665465,5.95025586,168.06,167.99,26.0]
[1747773665783,5.95025586,168.06,168.02,26.0]
[1747773666780,20.82589551,168.06,168.02,26.0]
[1747773667386,14.87563965,168.06,168.02,26.0]
[1747773669788,20.82589551,168.06,168.02,26.0]
[1747773670181,37.85309684,168.06,168.02,26.0]
[1747773670993,17.02720133,168.05,168.02,26.0]
[1747773671587,17.02720133,168.05,167.98,26.0]
[1747773671888,5.95096405,168.04,167.98,26.0]
[1747773672681,5.95096405,168.04,167.99,3.40885832]
[1747773673999,5.95096405,168.04,168.0,3.40885832]
[1747773675172,5.95096405,168.04,167.99,3.40885832]
[1747773677984,5.95060993,168.05,167.99,3.40885832]
[1747773679594,35.67685019,168.04,167.99,3.40885832]
[1747773679796,35.67685019,168.04,168.0,3.40885832]
[1747773680303,22.97851954,168.03,168.0,3.40885832]
[1747773680676,5.95131821,168.03,168.0,3.40885832]
[1747773680994,5.95131821,168.03,167.99,3.40885832]
[1747773688304,17.02720133,168.02,167.99,3.40885832]
[1747773689409,37.85681508,168.03,167.99,3.40885832]
[1747773690416,17.02720133,168.02,167.99,3.40885832]
[1747773691113,17.02720133,168.0,167.99,3.40885832]
[1747773691311,35.67685019,168.0,167.99,3.40885832]
[1747773691508,18.64964886,167.99,167.97,26.0]
[1747773691688,35.67685019,167.99,167.97,26.0]
[1747773692405,5.95308965,167.98,167.95,26.0]
[1747773692906,5.95308965,167.98,167.93,26.0]
[1747773693816,5.95308965,167.98,167.94,3.41191635]
[1747773694407,37.86301511,167.98,167.94,3.41191635]
[1747773694789,17.02720133,167.96,167.94,3.41191635]
[1747773694986,17.02720133,167.96,167.93,26.0]
[1747773695912,5.95415302,167.95,167.93,26.0]
[1747773698925,5.95344406,167.97,167.93,26.0]
[1747773699288,5.95344406,167.97,167.94,3.4064669]
[1747773699996,5.95308965,167.98,167.93,26.0]
[1747773701016,17.02720133,167.97,167.93,26.0]
[1747773701315,17.02720133,167.97,167.91,1.5415]
[1747773701626,35.67685019,167.94,167.87,1.5627]
[1747773701808,17.02720133,167.93,167.87,1.5627]
[1747773702128,5.95486214,167.93,167.87,1.5627]
[1747773702902,5.95486214,167.93,167.88,3.40593734]
[1747773704015,5.95486214,167.93,167.89,3.40593734]
[1747773704404,22.98206347,167.93,167.89,3.40593734]
[1747773705215,22.98206347,167.93,167.87,1.5627]
[1747773707812,17.02720133,167.92,167.87,1.5627]
[1747773708014,37.86921883,167.93,167.87,1.5627]
[1747773709425,17.02720133,167.88,167.83,1.6182]
[1747773709719,17.02720133,167.87,167.83,1.6182]
[1747773709924,17.02720133,167.88,167.83,1.6182]
[1747773710098,43.80720133,167.89,167.83,1.6182]
[1747773711328,5.95663569,167.88,167.83,1.6182]
[1747773711822,37.87542625,167.88,167.83,1.6182]
[1747773712196,17.02720133,167.87,167.83,1.6182]
[1747773712419,17.02720133,167.87,167.79,27.5023]
[1747773712797,20.84822492,167.88,167.79,27.5023]
[1747773712798,17.02720133,167.85,167.79,1.5023]
[1747773713166,17.02720133,167.84,167.79,1.5023]
[1747773713427,5.95841029,167.83,167.79,1.5023]
[1747773713599,17.02720133,167.82,167.74,1.5023]
[1747773713914,37.88163736,167.83,167.75,26.0]
[1747773714301,17.02720133,167.82,167.74,1.5023]
[1747773714624,17.02720133,167.82,167.74,27.5023]
[1747773715025,39.50408489,167.83,167.74,1.5023]
[1747773715026,35.67685019,167.81,167.74,1.5023]
[1747773715412,24.60876929,167.81,167.74,1.5023]
[1747773717531,41.77813219,167.81,167.74,1.5023]
[1747773718229,67.77813219,167.81,167.72,30.32]
[1747773722829,5.95912043,167.81,167.72,30.32]
[1747773723034,5.95884161,167.82,167.77,1.5622]
[1747773724720,5.95841029,167.83,167.77,1.5622]
[1747773726136,22.98561162,167.83,167.77,1.5622]
[1747773726338,35.67685019,167.81,167.77,1.5622]
[1747773726808,41.63597062,167.81,167.77,1.5622]
[1747773727126,41.63597062,167.81,167.73,1.5831]
[1747773729030,41.77813219,167.81,167.73,1.5831]
[1747773732522,24.75093086,167.81,167.73,1.5831]
[1747773732714,41.77813219,167.81,167.73,1.5831]
[1747773735426,51.40876929,167.81,167.73,1.5831]
[1747773736543,32.75912043,167.81,167.73,1.5831]
[1747773736856,5.95841029,167.83,167.8,14.0005]
[1747773737356,5.95805529,167.84,167.8,14.0005]
[1747773741622,5.95770032,167.85,167.8,14.0005]
[1747773742022,20.85195113,167.85,167.8,14.0005]
[1747773743452,18.64964886,167.82,167.8,12.5]
[1747773743638,35.67685019,167.82,167.8,12.5]
[1747773744853,24.60876929,167.81,167.8,12.5]
[1747773749344,5.95912043,167.81,167.8,12.5]
[1747773750152,20.85450857,167.83,167.8,12.5]
[1747773755557,17.02720133,167.82,167.8,12.5]
[1747773756356,37.8817099,167.83,167.8,12.5]
[1747773756662,37.8817099,167.83,167.79,12.5]
[1747773757161,20.85450857,167.83,167.79,12.5]
[1747773757653,18.64964886,167.82,167.79,12.5]
[1747773757857,35.67685019,167.82,167.79,12.5]
[1747773758768,5.95912043,167.81,167.79,12.5]
[1747773767467,5.95841029,167.83,167.79,12.5]
[1747773767841,5.95841029,167.83,167.8,3.42094435]
[1747773768156,18.64964886,167.82,167.8,3.42094435]
[1747773768365,35.67685019,167.82,167.8,3.42094435]
[1747773769265,5.95912043,167.81,167.79,12.5]
[1747773769444,35.67685019,167.8,167.79,12.5]
[1747773771250,41.63632575,167.8,167.79,12.5]
[1747773772368,94.57848732,167.8,167.79,12.5]
[1747773774968,68.57848732,167.8,167.79,12.5]
[1747773776453,94.57848732,167.8,167.79,12.5]
[1747773786063,67.77848732,167.8,167.79,12.5]
[1747773786269,94.57848732,167.8,167.79,12.5]
[1747773786885,94.43632575,167.8,167.79,12.5]
[1747773787063,94.57848732,167.8,167.79,12.5]
[1747773791788,67.77848732,167.8,167.79,12.5]
[1747773791961,94.57848732,167.8,167.79,12.5]
[1747773798889,51.55128599,167.8,167.79,12.5]
[1747773799188,68.57848732,167.8,167.79,12.5]
[1747773800190,41.77848732,167.8,167.79,12.5]
[1747773800497,5.95947556,167.8,167.79,12.5]
[1747773800795,47.65145814,167.86,167.8,1.651]
[1747773800964,18.64964886,167.85,167.8,1.651]
[1747773801383,35.67685019,167.85,167.8,1.651]
[1747773801578,18.64964886,167.83,167.8,1.651]
[1747773802274,5.95876534,167.82,167.8,1.651]
[1747773808507,5.95805529,167.84,167.82,26.0]
[1747773808719,5.95805529,167.84,167.82,32.4469]
[1747773808889,5.95805529,167.84,167.82,6.4469]
[1747773812610,39.50166783,167.85,167.82,6.4469]
[1747773817815,5.95770032,167.85,167.82,6.4469]
[1747773820027,5.9573454,167.86,167.82,6.4469]
[1747773826802,5.9573454,167.86,167.8,1.651]
[1747773826803,35.67685019,167.85,167.8,1.651]
[1747773827531,18.64964886,167.82,167.8,1.651]
[1747773827711,5.95912043,167.81,167.8,1.651]
[1747773828929,18.64964886,167.8,167.77,6.3702]
[1747773829224,18.64964886,167.8,167.76,1.5677]
[1747773829809,5.95983074,167.79,167.76,1.5677]
[1747773831825,24.60912442,167.8,167.76,1.5677]
[1747773833247,56.53501466,167.8,167.76,1.5677]
[1747773833423,17.02720133,167.78,167.76,1.5677]
[1747773834732,24.61019007,167.77,167.76,1.5677]
[1747773838008,18.64964886,167.77,167.76,1.5677]
[1747773838230,24.61019007,167.77,167.76,1.5677]
[1747773840354,18.64964886,167.77,167.76,1.5677]
[1747773843241,24.61019007,167.77,167.76,1.5677]
[1747773843538,24.61019007,167.77,167.73,30.04]
[1747773845021,24.61019007,167.77,167.74,3.41247365]
[1747773846252,24.61019007,167.77,167.72,26.0]
[1747773847422,24.61019007,167.77,167.73,3.4122511]
[1747773847751,18.64964886,167.77,167.73,3.4122511]
[1747773848274,18.64964886,167.77,167.74,3.4122511]
[1747773848823,18.64964886,167.78,167.74,3.4122511]
[1747773849051,18.64964886,167.8,167.74,3.4122511]
[1747773849550,18.64964886,167.8,167.75,3.4122511]
[1747773850443,18.64964886,167.8,167.72,26.0]
[1747773851148,24.60913509,167.8,167.72,26.0]
[1747773851350,24.60913509,167.8,167.73,3.41091845]
[1747773852256,24.60913509,167.8,167.74,3.41091845]
[1747773853660,50.60913509,167.8,167.75,3.41091845]
[1747773855355,50.60913509,167.8,167.71,114.1117]
[1747773856159,44.64964886,167.8,167.71,114.1117]
[1747773856456,44.64964886,167.8,167.72,3.41092416]
[1747773856930,26.0,167.8,167.72,85.91092416]
[1747773857351,26.0,167.8,167.73,3.41092416]
[1747773858739,31.95955288,167.8,167.73,3.41092416]
[1747773858945,18.64964886,167.79,167.73,3.41092416]
[1747773859458,13.5,167.76,167.73,3.41092416]
[1747773860241,13.5,167.76,167.72,3.41092416]
[1747773860739,5.96125186,167.75,167.72,3.41092416]
[1747773861761,18.64964886,167.74,167.72,3.41092416]
[1747773862664,5.96125186,167.75,167.72,3.41092416]
[1747773862836,15.04059042,167.81,167.68,30.21092416]
[1747773863036,26.0,167.78,167.69,8.1059]
[1747773863550,31.95947556,167.8,167.7,3.41092416]
[1747773863751,5.95841029,167.83,167.72,8.1059]
[1747773863953,26.0,167.82,167.73,29.98]
[1747773864257,17.02720133,167.86,167.74,1.64556157]
[1747773864450,5.95770032,167.85,167.74,1.64556157]
[1747773864647,5.95770032,167.85,167.75,0.59581626]
[1747773864851,5.95745706,167.86,167.76,7.88446157]
[1747773865048,24.60710592,167.86,167.76,7.88446157]
[1747773865363,50.60710592,167.86,167.76,7.88446157]
[1747773866052,32.75710135,167.87,167.77,0.59579448]
[1747773866257,58.75710135,167.87,167.77,4.00671864]
[1747773866763,31.95710135,167.87,167.77,4.00671864]
[1747773866947,18.64964886,167.9,167.78,28.53166157]
[1747773867146,26.0,167.89,167.79,29.9]
[1747773867353,18.64964886,167.9,167.79,29.9]
[1747773867557,43.02720133,167.89,167.79,29.9]
[1747773867866,18.64964886,167.86,167.78,5.00042416]
[1747773868269,18.64964886,167.86,167.79,3.41092416]
[1747773868984,18.64964886,167.86,167.8,3.41092416]
[1747773869276,5.95770032,167.85,167.8,3.41092416]
[1747773870377,5.95770032,167.85,167.81,3.41092416]
[1747773870807,5.95770032,167.85,167.82,3.41092416]
[1747773872367,18.64964886,167.84,167.82,3.41092416]
[1747773872545,18.64964886,167.84,167.78,1.5895]
[1747773872752,5.95770032,167.85,167.78,1.5895]
[1747773873858,5.95770032,167.85,167.79,3.4099962]
[1747773874953,5.95770032,167.85,167.78,1.5895]
[1747773874954,5.95770032,167.85,167.8,3.4099962]
[1747773875982,5.95770032,167.85,167.81,3.4099962]
[1747773877282,26.0,167.85,167.78,1.5895]
[1747773878588,26.0,167.85,167.79,3.40716555]
[1747773879583,5.95805529,167.84,167.79,3.40716555]
[1747773879885,5.95805529,167.84,167.8,3.40716555]
[1747773880700,31.95779297,167.85,167.81,3.40716555]
[1747773881994,31.95779297,167.85,167.78,84.0895]
[1747773883193,31.95779297,167.85,167.79,3.40621712]
[1747773884195,31.95779297,167.85,167.8,3.40621712]
[1747773884697,26.8,167.9,167.8,3.40621712]
[1747773884867,26.0,167.89,167.8,85.90621712]
[1747773885073,5.95486214,167.93,167.82,8.0824]
[1747773885395,26.0,167.9,167.83,33.28621712]
[1747773886501,26.78,167.95,167.84,0.73772529]
[1747773886672,18.64964886,167.96,167.85,1.5973]
[1747773886869,5.95344406,167.97,167.86,0.14216157]
[1747773887071,5.95344406,167.97,167.86,0.73757777]
[1747773887301,26.0,167.94,167.86,0.73757777]
[1747773887683,26.0,167.94,167.87,3.40621712]
[1747773888199,18.64964886,167.96,167.87,3.40621712]
[1747773888771,18.64964886,167.96,167.85,28.3773]
[1747773888772,44.64964886,167.96,167.88,3.40621712]
[1747773889686,5.95415302,167.95,167.88,3.40621712]
[1747773889872,5.95415302,167.95,167.86,83.09542588]
[1747773891211,5.95415302,167.95,167.87,3.39504987]
[1747773892596,5.95415302,167.95,167.86,82.5]
[1747773894668,5.95415302,167.95,167.87,3.39253763]
[1747773896094,5.95415302,167.95,167.86,82.5]
[1747773896673,5.95486214,167.93,167.86,82.5]
[1747773898381,5.95457413,167.94,167.86,82.5]
[1747773899601,5.95457413,167.94,167.87,3.39096391]
[1747773899803,31.95393921,167.96,167.87,3.39096391]
[1747773900010,31.95393921,167.96,167.88,6.5778]
[1747773900179,31.95393921,167.96,167.89,29.8]
[1747773900880,5.95202666,168.01,167.9,1.6341]
[1747773901191,5.95202666,168.01,167.9,84.1341]
[1747773901192,18.64964886,168.0,167.9,84.1341]
[1747773901376,35.67685019,168.0,167.9,84.1341]
[1747773901581,18.64964886,167.98,167.9,84.1341]
[1747773901802,5.95344406,167.97,167.9,84.1341]
[1747773901997,5.95344406,167.97,167.9,1.6341]
[1747773902305,5.95344406,167.97,167.9,27.6341]
[1747773903008,5.95316766,167.98,167.9,27.6341]
[1747773903585,32.73279207,167.99,167.91,0.14216157]
[1747773904275,32.73279207,167.99,167.91,82.64216157]
[1747773904479,5.95279207,167.99,167.91,82.64216157]
[1747773904896,24.60167552,168.01,167.94,26.0]
[1747773905095,5.95202666,168.01,167.94,26.0]
[1747773905303,5.95096405,168.04,167.95,1.5733]
[1747773905511,18.64964886,168.03,167.95,31.3733]
[1747773905891,18.64964886,168.03,167.98,26.0]
[1747773906094,5.95096405,168.04,167.98,26.0]
[1747773906507,5.95065907,168.05,167.98,26.0]
[1747773906888,18.64964886,168.05,167.98,26.0]
[1747773907798,18.64964886,168.01,167.98,26.0]
[1747773908404,17.02720133,168.01,167.95,31.3733]
[1747773908708,17.02720133,168.01,167.96,26.0]
[1747773909101,5.95238095,168.0,167.96,26.0]
[1747773911421,20.83139584,168.02,167.96,26.0]
[1747773915331,5.95167241,168.02,167.96,26.0]
[1747773915637,5.95096405,168.04,167.98,26.0]
[1747773915934,31.90158369,168.08,167.98,26.0]
[1747773916114,24.59707362,168.14,167.99,1.5047]
[1747773916317,18.64964886,168.11,168.02,26.0]
[1747773916526,17.02720133,168.12,168.02,55.78]
[1747773916711,26.76,168.13,168.02,138.28]
[1747773917023,18.64964886,168.11,168.02,138.28]
[1747773917411,5.94813228,168.12,168.02,138.28]
[1747773917611,5.94813228,168.12,168.04,0.14216157]
[1747773917818,5.94813228,168.12,168.07,26.0]
[1747773917999,5.94742476,168.14,168.07,26.0]
[1747773918330,5.94742476,168.14,168.06,26.0]
[1747773918527,35.67685019,168.13,168.06,26.0]
[1747773918724,18.64964886,168.11,168.06,26.0]
[1747773918902,18.64964886,168.13,168.05,26.0]
[1747773920450,14.86856191,168.14,168.05,26.0]
[1747773920947,20.81598667,168.14,168.05,26.0]
[1747773922946,20.81598667,168.14,168.05,108.5]
[1747773923154,5.94742476,168.14,168.06,26.14216157]
[1747773923415,5.94742476,168.14,168.06,52.90216157]
[1747773923569,5.94671741,168.16,168.08,0.14216157]
[1747773923860,5.94671741,168.16,168.12,26.0]
[1747773924068,24.59565908,168.18,168.12,26.0]
[1747773924431,5.94601022,168.18,168.12,26.0]
[1747773925360,5.94530321,168.2,168.12,26.0]
[1747773925531,5.94530321,168.2,168.13,1.5521]
[1747773925731,5.94530321,168.2,168.14,26.0]
[1747773926327,20.80856123,168.2,168.14,26.0]
[1747773926522,18.64964886,168.19,168.14,26.0]
[1747773926960,20.80856123,168.2,168.14,26.0]
[1747773927873,18.64964886,168.17,168.13,1.5521]
[1747773928043,5.94671741,168.16,168.12,26.0]
[1747773928678,20.81351093,168.16,168.12,26.0]
[1747773929963,5.94671741,168.16,168.12,26.0]
[1747773930150,5.94601022,168.18,168.12,26.0]
[1747773930567,5.94494976,168.21,168.12,26.0]
[1747773930774,5.94494976,168.21,168.13,1.5391]
[1747773931157,5.94494976,168.21,168.14,6.6401]
[1747773931364,5.94494976,168.21,168.18,26.0]
[1747773931879,14.85953403,168.25,168.18,26.0]
[1747773931880,5.944243,168.23,168.18,26.0]
[1747773932252,5.9435364,168.25,168.18,26.0]
[1747773932669,18.64964886,168.24,168.18,26.0]
[1747773934152,5.944243,168.23,168.15,55.7]
[1747773934673,26.0,168.27,168.18,26.0]
[1747773934674,5.94282997,168.27,168.18,26.0]
[1747773934848,5.94282997,168.27,168.21,1.5434]
[1747773935050,41.59423015,168.31,168.21,31.2234]
[1747773935051,5.94177064,168.3,168.21,31.2234]
[1747773935246,5.94177064,168.3,168.22,6.1928]
[1747773935476,5.94177064,168.3,168.22,32.9328]
[1747773935687,18.64964886,168.29,168.22,32.9328]
[1747773936053,5.94247682,168.28,168.22,32.9328]
[1747773936253,5.94247682,168.28,168.23,26.0]
[1747773936459,20.79866888,168.28,168.23,26.0]
[1747773938669,14.85619206,168.28,168.23,26.0]
[1747773940084,17.02720133,168.34,168.24,26.0]
[1747773940293,5.94035879,168.34,168.24,26.0]
[1747773940574,5.94035879,168.34,168.28,26.0]
[1747773940958,20.7881533,168.37,168.29,1.5695]
[1747773941163,5.93930035,168.37,168.3,26.0]
[1747773941548,5.93859492,168.39,168.3,26.0]
[1747773941773,14.84591907,168.4,168.31,0.14216157]
[1747773941774,5.93834221,168.4,168.31,0.14216157]
[1747773941950,5.93786718,168.42,168.35,26.0]
[1747773942148,5.93786718,168.42,168.35,55.68]
[1747773942379,5.93718458,168.43,168.35,55.68]
[1747773943257,17.02720133,168.39,168.35,29.68]
[1747773943467,17.02720133,168.38,168.31,26.0]
[1747773943858,35.67685019,168.39,168.31,26.0]
[1747773944058,17.02720133,168.37,168.31,26.0]
[1747773944261,35.67685019,168.34,168.29,1.5695]
[1747773944469,5.94071169,168.33,168.29,1.5695]
[1747773945263,35.67685019,168.32,168.25,252.06]
[1747773945464,20.79249093,168.33,168.25,252.06]
[1747773945465,20.79249093,168.33,168.28,26.0]
[1747773945668,47.8819742,168.33,168.28,26.0]
[1747773946058,20.79249093,168.33,168.28,26.0]
[1747773946584,5.94071169,168.33,168.28,26.0]
[1747773948189,14.84961329,168.36,168.28,26.0]
[1747773948362,5.94032843,168.35,168.28,26.0]
[1747773948563,20.78926641,168.36,168.28,26.0]
[1747773949971,14.84961329,168.36,168.28,26.0]
[1747773950479,5.93930035,168.37,168.29,0.14216157]
[1747773951367,5.93894761,168.38,168.29,0.14216157]
[1747773952061,27.08948327,168.37,168.28,26.0]
[1747773952560,45.73913213,168.36,168.28,26.0]
[1747773953695,5.94000594,168.35,168.28,26.0]
[1747773953863,20.79002079,168.35,168.28,26.0]
[1747773954782,5.94000594,168.35,168.28,26.0]
[1747773955283,5.94000594,168.35,168.29,1.538]
[1747773955765,5.93930035,168.37,168.3,29.66]
[1747773956797,20.78755122,168.37,168.3,29.66]
[1747773958213,27.08948327,168.35,168.3,29.66]
[1747773958436,45.73913213,168.34,168.3,29.66]
[1747773958634,18.64964886,168.34,168.3,29.66]
[1747773958925,45.73913213,168.36,168.3,29.66]
[1747773959125,18.64964886,168.36,168.3,29.66]
[1747773959288,20.78755122,168.37,168.3,29.66]
[1747773959830,5.93930035,168.37,168.3,29.66]
[1747773960732,5.93930035,168.37,168.31,26.0]
[1747773961238,26.72,168.39,168.3,29.66]
[1747773961239,5.93788967,168.41,168.33,26.0]
[1747773961994,5.93718458,168.43,168.35,1.5876]
[1747773962214,5.93718458,168.43,168.36,29.6]
[1747773962728,5.93647966,168.45,168.39,26.0]
[1747773963518,5.93647966,168.45,168.41,26.0]
[1747773963898,45.73913213,168.44,168.36,29.6]
[1747773964104,45.73913213,168.45,168.39,26.0]
[1747773964637,18.64964886,168.43,168.37,26.0]
[1747773964845,18.64964886,168.39,168.35,1.5876]
[1747773965199,27.08948327,168.41,168.35,1.5876]
[1747773965419,18.64964886,168.39,168.35,1.5876]
[1747773965721,18.64964886,168.39,168.34,26.0]
[1747773965923,47.87579992,168.38,168.31,31.2195]
[1747773966228,20.78631665,168.38,168.31,31.2195]
[1747773966529,18.64964886,168.37,168.32,26.0]
[1747773967527,27.08948327,168.36,168.31,1.6195]
[1747773967725,18.64964886,168.37,168.32,26.0]
[1747773968115,5.93965312,168.36,168.32,26.0]
[1747773970124,5.94035879,168.34,168.32,26.0]
[1747773971729,5.93965312,168.36,168.32,26.0]
[1747773973943,24.58859647,168.38,168.32,26.0]
[1747773974119,5.93894761,168.38,168.31,27.6195]
[1747773975040,5.93848393,168.4,168.31,27.6195]
[1747773975244,18.64964886,168.39,168.31,27.6195]
[1747773975828,5.93894761,168.38,168.31,27.6195]
[1747773976954,5.93894761,168.38,168.32,3.35529231]
[1747773977444,20.78384798,168.4,168.32,3.35529231]
[1747773978059,18.64964886,168.39,168.32,3.35529231]
[1747773978232,18.64964886,168.39,168.31,27.6195]
[1747773978744,18.64964886,168.37,168.31,27.6195]
[1747773979062,45.73913213,168.36,168.31,26.0]
[1747773979227,18.64964886,168.34,168.28,112.1]
[1747773979418,5.94071169,168.33,168.31,26.0]
[1747773979618,5.94071169,168.33,168.28,29.6]
[1747773979832,5.94071169,168.33,168.31,26.0]
[1747773980231,24.5896548,168.35,168.31,26.0]
[1747773983874,24.5896548,168.35,168.29,26.0]
[1747773983875,51.67913807,168.35,168.29,26.0]
[1747773984245,66.52915292,168.35,168.29,26.0]
[1747773984459,39.43966965,168.35,168.29,26.0]
[1747773985246,66.52915292,168.35,168.29,26.0]
[1747773985471,39.43966965,168.35,168.29,26.0]
[1747773986164,24.5896548,168.35,168.29,26.0]
[1747773986676,5.93930035,168.37,168.31,26.0]
[1747773987044,45.73913213,168.33,168.24,29.6]
[1747773987366,45.73913213,168.33,168.25,29.37591747]
[1747773987565,18.64964886,168.33,168.25,29.37591747]
[1747773987765,45.73913213,168.34,168.27,26.0]
[1747773987948,18.64964886,168.32,168.27,26.0]
[1747773988564,5.94141762,168.31,168.27,26.0]
[1747773988986,18.57775341,168.3,168.27,26.0]
[1747773989146,18.57775341,168.3,168.25,26.0]
[1747773989776,18.57775341,168.3,168.26,3.37590389]
[1747773990879,5.94212371,168.29,168.26,3.37590389]
[1747773991079,5.94212371,168.29,168.25,26.0]
[1747773993580,26.72,168.32,168.27,26.0]
[1747773993770,18.64964886,168.35,168.27,26.0]
[1747773994077,39.43966965,168.35,168.27,26.0]
[1747773994248,56.37469902,168.35,168.27,26.0]
[1747773994864,56.37469902,168.35,168.28,3.37081659]
[1747773995283,39.43966965,168.35,168.28,3.37081659]
[1747773995485,66.15966965,168.35,168.28,3.37081659]
[1747773995783,24.5896548,168.35,168.28,3.37081659]
[1747773996163,24.5896548,168.35,168.29,1.6064]
[1747773996367,24.5896548,168.35,168.29,4.97721659]
[1747773997383,41.52468417,168.35,168.29,4.97721659]
[1747773997550,41.52468417,168.35,168.27,26.0]
[1747773997966,18.64964886,168.33,168.27,26.0]
[1747773998973,5.94106463,168.32,168.27,26.0]
[1747773999751,35.58467823,168.31,168.25,1.6473]
[1747774000151,62.30467823,168.31,168.25,1.6473]
[1747774001252,18.64964886,168.29,168.25,1.6473]
[1747774001779,5.94177064,168.3,168.25,1.6473]
[1747774003386,5.94177064,168.3,168.26,3.37218446]
[1747774004161,5.94177064,168.3,168.25,1.6473]
[1747774006476,18.64964886,168.29,168.25,1.6473]
[1747774006669,5.94177064,168.3,168.25,1.6473]
[1747774007479,32.66149372,168.31,168.25,1.6473]
[1747774007880,32.66149372,168.31,168.26,3.36878409]
[1747774009179,32.66149372,168.31,168.27,3.36878409]
[1747774010604,5.94149372,168.31,168.26,3.36878409]
[1747774010781,18.64964886,168.3,168.26,3.36878409]
[1747774011287,18.64964886,168.3,168.25,3.36878409]
[1747774011999,5.94212371,168.29,168.25,3.36878409]
[1747774013401,18.64964886,168.28,168.25,3.36878409]
[1747774014304,35.58467823,168.26,168.25,3.36878409]
[1747774014601,35.58467823,168.26,168.17,26.0]
[1747774014602,18.64964886,168.26,168.17,26.0]
[1747774014994,35.58467823,168.26,168.17,26.0]
[1747774015202,18.64964886,168.24,168.17,26.0]
[1747774016609,5.944243,168.23,168.17,26.0]
[1747774017278,18.64964886,168.22,168.17,26.0]
[1747774017799,18.64964886,168.22,168.16,26.0]
[1747774018513,5.94494976,168.21,168.16,26.0]
[1747774019607,5.9445774,168.23,168.16,26.0]
[1747774019795,18.64964886,168.22,168.16,26.0]
[1747774020105,5.94395627,168.24,168.16,26.0]